[Event "Ramat Gan Masters-A Winter 2023"]
[Site "Ramat Gan/ISR"]
[Date "2023.03.20"]
[Round "7.11"]
[White "Rozen, Guy"]
[Black "Medovoy, Yaniv"]
[Result "1/2-1/2"]
[Annotator "TA"]
[ECO "E52"]
[WhiteElo "2027"]
[BlackElo "1842"]
[PlyCount "49"]
[EventDate "2023.01.17"]
[EventType "swiss"]
[SourceTitle "playchess.com"]
[Source "ChessBase"]
[SourceQuality "1"]
[TimeControl "5400+30"]

{[%evp 22,49,33,18,40,0,49,15,76,35,108,72,78,-51,-47,-54,-59,-95,-82,-85,-82,-141,-134,-146,-93,-88,-20,-30,-22,-22]} 1. d4 {[%emt 0:20:06]} d5 {[%emt 0:01:32]} 2. c4 {[%emt 0:00:01]} e6 {[%emt 0:00:08]} 3. Nc3 {[%emt 0:00:04]} Bb4 {[%emt 0:00:05]} 4. a3 {[%emt 0:07:14]} Bxc3+ {[%emt 0:00:13]} 5. bxc3 {[%emt 0:00:05]} c5 {[%emt 0:01:12]} 6. Nf3 {[%emt 0:02:28]} Nf6 {[%emt 0:00:51]} 7. e3 {[%emt 0:04:34]} O-O {[%emt 0:01:44]} 8. Bd3 {[%emt 0:00:13]} Nbd7 {[%emt 0:07:26]} 9. cxd5 {[%emt 0:01:14]} exd5 {[%emt 0:01:27]} 10. O-O {[%emt 0:00:26]} b6 {[%emt 0:00:31]} 11. c4 {[%emt 0:03:14]} Bb7 {[%emt 0:03:47]} 12. Bb2 {[%emt 0:00:06]} Rc8 {[%emt 0:00:58] [#] E52: Nimzo-Indian: Rubinstein: 4...0-0 5 Nf3 d5 6 Bd3 b6.} 13. cxd5 $146 {[%emt 0:03:57] And now e4 would win.} (13. Rc1 {feels hotter.} cxd4 14. Nxd4 Ne5 15. Ne6) ({Predecessor:} 13. Rc1 cxd4 14. Bxd4 dxc4 15. Bxc4 Nc5 16. Qe2 Qe7 17. Rfd1 Rfd8 18. Ng5 Bd5 19. Bxf6 Qxf6 20. Nxh7 {1-0 Giannoulakis,L (2351)-Siskou,E (1502) Chalkida Evoiki op 5th 2023 (1)}) 13... Nxd5 {[%emt 0:15:49]} (13... c4 $11 {is more appropriate.} 14. Bc2 (14. Bf5 c3 $17) 14... c3) 14. dxc5 {[%emt 0:02:08]} bxc5 {[%emt 0:05:04]} (14... Rxc5 $11 {remains equal.} 15. Bd4 Ra5) 15. Bf5 {[%emt 0:04:07] This pair of bishops is nice.} Rb8 {[%emt 0:02:00]} (15... g6 $14 16. Bc2 c4) 16. e4 {[%emt 0:03:57] White is much more active.} (16. Qc2 {with more complications.} g6 17. Bxd7 Qxd7 18. Qxc5 Nf4 19. exf4 Bxf3 20. Qd4) 16... N5f6 {[%emt 0:03:34]} 17. e5 {[%emt 0:00:41]} (17. Qc2 $16) 17... Bxf3 $15 {[%emt 0:00:24][%mdl 64] [#] Discovered Attack} 18. Qxf3 {[%emt 0:00:13]} Rxb2 {[%emt 0:01:06]} 19. exf6 {[%emt 0:03:29]} Nxf6 {[%emt 0:00:27]} 20. Qc3 {[%emt 0:03:23]} Qd4 {[%emt 0:02:37]} 21. Qf3 {[%emt 0:03:41] White is weak on the dark squares} (21. Qxd4 $142 cxd4 22. Rfb1 Rxb1+ 23. Rxb1) 21... c4 {[%emt 0:01:45] Hoping for ...g6.} 22. Rad1 {[%emt 0:01:49]} Qc5 {[%emt 0:01:28]} (22... Rd2 $142 {White must now prevent ...c3.} 23. Rxd2 Qxd2) 23. Rc1 $17 {[%emt 0:03:47]} Rfb8 {[%emt 0:06:24]} ({Better is} 23... g6 $17 24. Bd3 Qxa3 25. Rxc4 Rd8 26. Qxf6 Qxd3) 24. Bd3 $11 {[%emt 0:14:40]} R2b3 {[%emt 0:03:34][%mdl 64] [#] Pin} (24... Qxa3 $2 25. Bxh7+ (25. Rxc4 R2b3 $15) 25... Nxh7 26. Qxa3 $18) 25. Qf4 {[%emt 0:00:20] Prevents Qd6.   Weighted Error Value: White=0.35/Black=0.32} 1/2-1/2